fUSD/lending_fUSD_20240127
["ID","MTS","AMOUNT","RATE_DAILY","PERIOD"]
[312835330,1706321463258,-1000.0,0.00052876,7]
[312835331,1706321463267,-500.0,0.00052876,31]
[312835332,1706321463277,-500.0,0.00052876,31]
[312835333,1706321463286,-500.0,0.00052876,31]
[312835334,1706321463295,-500.0,0.00052876,31]
[312835335,1706321463305,-500.0,0.00052876,31]
[312835336,1706321463315,-500.0,0.00052876,31]
[312835337,1706321463325,-500.0,0.00052876,31]
[312835338,1706321463334,-500.0,0.00052876,31]
[312835339,1706321463344,-500.0,0.00052876,31]
[312835340,1706321463353,-500.0,0.00052876,31]
[312835341,1706321463363,-15024.77605666,0.0005288,14]
[312835342,1706321463372,-594.33,0.0005288,28]
[312835343,1706321463381,-315.76458039,0.00052888,120]
[312835344,1706321463390,-4513.50722425,0.000529,30]
[312835345,1706321463400,-5832.16640401,0.000529,30]
[312835346,1706321463409,-1132.87344757,0.000529,30]
[312835347,1706321463418,-85643.88953739,0.000529,30]
[312835348,1706321463428,-156.37182955,0.00052903,60]
[312835349,1706321463437,-1293.03214153,0.0005292,120]
[312835350,1706321463446,-160.51775045,0.00052921,60]
[312835351,1706321463456,-234.0,0.0005299,2]
[312835352,1706321463465,-198.0,0.0005299,2]
[312835353,1706321463474,-50000.0,0.00053,43]
[312835354,1706321463484,-1161.06681493,0.00053,120]
[312835355,1706321463493,-26368.0,0.00053,2]
[312835356,1706321463502,-296.26,0.00053,30]
[312835357,1706321463512,-600.0,0.00053,30]
[312835358,1706321463521,-250.0,0.00053,44]
[312835359,1706321463530,-300.0,0.00053,54]
[312835360,1706321463541,-1200.0,0.00053,15]
[312835361,1706321463551,-52228.98031896,0.00053,30]
[312835362,1706321463562,-608.6,0.00053,20]
[312835363,1706321463572,-159.77,0.00053,30]
[312835364,1706321463582,-20000.0,0.00053,6]
[312835365,1706321463593,-1005.8725815,0.00053,120]
[312835366,1706321463603,-1000.0,0.00053,120]
[312835367,1706321463614,-157.45,0.00053,30]
[312835368,1706321463623,-289.22082177,0.00053015,60]
[312835369,1706321463633,-326.0,0.0005307,8]
[312835370,1706321463644,-157.58427946,0.00053079,60]
[312835371,1706321463653,-160.0,0.00053096,120]
[312835372,1706321463663,-9641.46795832,0.00053104,2]
[312835373,1706321463672,-158.3429236,0.00053128,60]
[312835374,1706321463681,-500.0,0.0005315,31]
[312835375,1706321463691,-500.0,0.0005315,31]
[312835376,1706321463702,-500.0,0.0005315,31]
[312835377,1706321463712,-500.0,0.0005315,31]
[312835378,1706321463722,-500.0,0.0005315,31]
[312835379,1706321463731,-500.0,0.0005315,31]
[312835380,1706321463743,-500.0,0.0005315,2]
[312835381,1706321463754,-500.0,0.0005315,31]
[312835382,1706321463764,-667.62,0.0005315,31]
[312835383,1706321463774,-1462.72,0.0005315,31]
[312835384,1706321463784,-500.0,0.0005315,31]
[312835385,1706321463793,-716.93,0.0005315,2]
[312835386,1706321463802,-500.0,0.0005315,31]
[312835387,1706321463933,-500.0,0.0005315,31]
[312835388,1706321463942,-500.0,0.0005315,2]
[312835389,1706321463952,-600.0,0.0005315,120]
[312835390,1706321463961,-350.95,0.0005315,31]
[312835391,1706321463970,-500.0,0.0005315,31]
[312835392,1706321463979,-500.0,0.0005315,31]
[312835393,1706321463988,-500.0,0.0005315,31]
[312835394,1706321463998,-665.93,0.0005315,2]
[312835395,1706321464007,-500.0,0.0005315,31]
[312835396,1706321464017,-965.88,0.0005315,7]
[312835397,1706321464027,-500.0,0.0005315,31]
[312835398,1706321464036,-853.52,0.0005315,31]
[312835399,1706321464046,-658.14,0.0005315,2]
[312835400,1706321464055,-500.0,0.0005315,31]
[312835401,1706321464064,-509.85,0.0005315,31]
[312835402,1706321464073,-500.0,0.0005315,31]
[312835403,1706321464082,-333.28496593,0.0005315,31]
[312835404,1706321464091,-500.0,0.0005315,31]
[312835405,1706321464100,-150.0,0.0005315,31]
[312835406,1706321464109,-500.0,0.0005315,31]
[312835407,1706321464118,-525.73061852,0.0005315,15]
[312835408,1706321464127,-915.75,0.0005315,31]
[312835409,1706321464137,-1220.47,0.0005315,2]
[312835410,1706321464146,-175.04365074,0.0005315,31]
[312835411,1706321464155,-500.0,0.0005315,31]
[312835412,1706321464164,-500.0,0.0005315,31]
[312835413,1706321464173,-500.0,0.0005315,31]
[312835414,1706321464182,-500.0,0.0005315,31]
[312835415,1706321464191,-500.0,0.0005315,31]
[312835416,1706321464200,-500.0,0.0005315,31]
[312835417,1706321464209,-500.0,0.0005315,31]
[312835418,1706321464218,-556.6,0.0005315,2]
[312835419,1706321464227,-500.0,0.0005315,31]
[312835420,1706321464236,-500.0,0.0005315,31]
[312835421,1706321464245,-936.0,0.0005315,31]
[312835422,1706321464254,-500.0,0.0005315,31]
[312835423,1706321464263,-1000.0,0.0005315,2]
[312835424,1706321464272,-500.0,0.0005315,31]
[312835425,1706321464281,-500.0,0.0005315,31]
[312835426,1706321464290,-560.89,0.0005315,31]
[312835427,1706321464299,-500.0,0.0005315,31]
[312835428,1706321464308,-500.0,0.0005315,5]
[312835429,1706321464316,-500.0,0.0005315,31]
[312835430,1706321464325,-500.0,0.0005315,31]
[312835431,1706321464334,-500.0,0.0005315,31]
[312835432,1706321464342,-539.10495196,0.0005315,31]
[312835433,1706321464351,-514.39,0.0005315,31]
[312835434,1706321464360,-500.0,0.0005315,31]
[312835435,1706321464369,-500.0,0.0005315,31]
[312835436,1706321464378,-669.78,0.0005315,31]
[312835437,1706321464387,-534.76,0.0005315,31]
[312835438,1706321464396,-10183.91,0.0005315,31]
[312835439,1706321464405,-500.0,0.0005315,31]
[312835440,1706321464414,-500.0,0.0005315,31]
[312835441,1706321464423,-500.0,0.0005315,31]
[312835442,1706321464432,-910.5,0.0005315,31]
[312835443,1706321464441,-500.0,0.0005315,31]
[312835444,1706321464450,-192.69300484,0.0005315,31]
[312835445,1706321464460,-500.0,0.0005315,31]
[312835446,1706321464469,-542.96,0.0005315,31]
[312835447,1706321464479,-500.0,0.0005315,31]
[312835448,1706321464488,-500.0,0.0005315,31]
[312835449,1706321464497,-500.0,0.0005315,31]
[312835450,1706321464507,-1555.2,0.0005315,31]
[312835451,1706321464516,-500.0,0.0005315,31]
[312835452,1706321464528,-902.75,0.0005315,31]
[312835453,1706321464539,-500.0,0.0005315,31]
[312835454,1706321464548,-612.12830021,0.0005315,31]
[312835455,1706321464557,-500.0,0.0005315,31]
[312835456,1706321464566,-500.0,0.0005315,31]
[312835457,1706321464575,-500.0,0.0005315,31]
[312835458,1706321464585,-584.31,0.0005315,31]
[312835459,1706321464594,-500.0,0.0005315,31]
[312835460,1706321464603,-981.42,0.0005315,31]
[312835461,1706321464612,-617.35,0.0005315,5]
[312835462,1706321464621,-500.0,0.0005315,31]
[312835463,1706321464631,-500.0,0.0005315,31]
[312835464,1706321464642,-500.0,0.0005315,31]
[312835465,1706321464651,-500.0,0.0005315,31]
[312835466,1706321464660,-500.0,0.0005315,31]
[312835467,1706321464669,-568.51,0.0005315,31]
[312835468,1706321464678,-500.0,0.0005315,31]
[312835469,1706321464688,-500.0,0.0005315,31]
[312835470,1706321464697,-500.0,0.0005315,31]
[312835471,1706321464707,-500.0,0.0005315,31]
[312835472,1706321464717,-500.0,0.0005315,31]
[312835473,1706321464726,-500.0,0.0005315,31]
[312835474,1706321464735,-1061.81746575,0.0005315,7]
[312835475,1706321464746,-500.0,0.0005315,31]
[312835476,1706321464756,-500.0,0.0005315,31]
[312835477,1706321464765,-512.2710871,0.0005315,31]
[312835478,1706321464775,-500.0,0.0005315,31]
[312835479,1706321464785,-500.0,0.0005315,31]
[312835480,1706321464795,-308.22764077,0.0005315,31]
[312835481,1706321464804,-500.0,0.0005315,31]
[312835482,1706321464814,-500.0,0.0005315,31]
[312835483,1706321464825,-500.0,0.0005315,31]
[312835484,1706321464835,-500.0,0.0005315,31]
[312835485,1706321464844,-11634.71,0.000532,5]
[312835486,1706321464853,-243.56,0.000532,7]
[312835487,1706321464863,-243.56,0.000532,7]
[312835488,1706321464872,-243.56,0.000532,7]
[312835489,1706321464881,-243.56,0.000532,7]
[312835490,1706321464890,-243.56,0.000532,7]
[312835491,1706321464899,-243.56,0.000532,7]
[312835492,1706321464908,-243.56,0.000532,7]
[312835493,1706321464917,-243.56,0.000532,7]
[312835494,1706321464926,-243.56,0.000532,7]
[312835495,1706321464935,-243.56,0.000532,7]
[312835496,1706321464945,-243.56,0.000532,7]
[312835497,1706321464955,-243.56,0.000532,7]
[312835498,1706321464964,-243.56,0.000532,7]
[312835499,1706321464974,-243.56,0.000532,7]
[312835500,1706321464983,-243.56,0.000532,7]
[312835501,1706321464992,-243.56,0.000532,7]
[312835502,1706321465001,-243.56,0.000532,7]
[312835503,1706321465011,-243.56,0.000532,7]
[312835504,1706321465020,-243.56,0.000532,7]
[312835505,1706321465030,-243.56,0.000532,7]
[312835506,1706321465040,-32479.0,0.00053243,30]
[312835507,1706321465049,-160.0,0.0005326,120]
[312835508,1706321465059,-1000.0,0.000533,32]
[312835509,1706321465069,-153.634548,0.000533,32]
[312835510,1706321465079,-159.31179929,0.00053329,60]
[312835511,1706321465088,-151.14505903,0.0005334,60]
[312835512,1706321465098,-153.64611403,0.00053392,60]
[312835513,1706321465107,-1000.0,0.000534,32]
[312835514,1706321465117,-289.22082177,0.00053412,60]
[312835515,1706321465126,-500.0,0.00053424,31]
[312835516,1706321465136,-500.0,0.00053424,31]
[312835517,1706321465145,-500.0,0.00053424,31]
[312835518,1706321465155,-500.0,0.00053424,31]
[312835519,1706321465165,-500.0,0.00053424,31]
[312835520,1706321465174,-603.09612021,0.00053424,31]
[312835521,1706321465185,-500.0,0.00053424,2]
[312835522,1706321465194,-500.0,0.00053424,31]
[312835523,1706321465205,-667.62,0.00053424,31]
[312835524,1706321465215,-1462.72,0.00053424,31]
[312835525,1706321465225,-500.0,0.00053424,31]
[312835526,1706321465234,-716.93,0.00053424,2]
[312835527,1706321465243,-183.28439977,0.00053424,31]
[312835528,1706321465252,-500.0,0.00053424,31]
[312835529,1706321465263,-500.0,0.00053424,2]
[312835530,1706321465272,-600.0,0.00053424,120]
[312835531,1706321465281,-500.0,0.00053424,31]
[312835532,1706321465291,-500.0,0.00053424,31]
[312835533,1706321465300,-500.0,0.00053424,31]
[312835534,1706321465309,-665.93,0.00053424,2]
[312835535,1706321465319,-500.0,0.00053424,31]
[312835536,1706321465328,-965.88,0.00053424,7]
[312835537,1706321465338,-500.0,0.00053424,31]
[312835538,1706321465347,-853.52,0.00053424,31]
[312835539,1706321465356,-658.14,0.00053424,2]
[312835540,1706321465365,-500.0,0.00053424,31]
[312835541,1706321465375,-509.85,0.00053424,31]
[312835542,1706321465383,-500.0,0.00053424,31]
[312835543,1706321465393,-500.0,0.00053424,31]
[312835544,1706321465402,-150.0,0.00053424,31]
[312835545,1706321465411,-500.0,0.00053424,31]
[312835546,1706321465421,-915.75,0.00053424,31]
[312835547,1706321465431,-1220.47,0.00053424,2]
[312835548,1706321465440,-500.0,0.00053424,31]
[312835549,1706321465450,-500.0,0.00053424,31]
[312835550,1706321465459,-500.0,0.00053424,31]
[312835551,1706321465468,-500.0,0.00053424,31]
[312835552,1706321465477,-500.0,0.00053424,31]
[312835553,1706321465486,-245.1938878,0.00053424,31]
[312835554,1706321465495,-500.0,0.00053424,31]
[312835555,1706321465505,-556.6,0.00053424,2]
[312835556,1706321465516,-500.0,0.00053424,31]
[312835557,1706321465525,-500.0,0.00053424,31]
[312835558,1706321465534,-936.0,0.00053424,31]
[312835559,1706321465544,-500.0,0.00053424,31]
[312835560,1706321465553,-1000.0,0.00053424,2]
[312835561,1706321465562,-500.0,0.00053424,31]
[312835562,1706321465572,-500.0,0.00053424,31]
[312835563,1706321465581,-560.89,0.00053424,31]
[312835564,1706321465590,-500.0,0.00053424,31]
[312835565,1706321465599,-500.0,0.00053424,5]
[312835566,1706321465608,-500.0,0.00053424,31]
[312835567,1706321465618,-500.0,0.00053424,31]
[312835568,1706321465628,-500.0,0.00053424,31]
[312835569,1706321465637,-514.39,0.00053424,31]
[312835570,1706321465647,-314.58110357,0.00053424,31]
[312835571,1706321465657,-500.0,0.00053424,31]
[312835572,1706321465666,-669.78,0.00053424,31]
[312835573,1706321465676,-534.76,0.00053424,31]
[312835574,1706321465686,-10183.91,0.00053424,31]
[312835575,1706321465695,-500.0,0.00053424,31]
[312835576,1706321465704,-500.0,0.00053424,31]
[312835577,1706321465713,-500.0,0.00053424,31]
[312835578,1706321465816,-910.5,0.00053424,31]
[312835579,1706321465827,-500.0,0.00053424,31]
[312835580,1706321465836,-293.21466464,0.00053424,31]
[312835581,1706321465845,-542.96,0.00053424,31]
[312835582,1706321465855,-500.0,0.00053424,31]
[312835583,1706321465865,-500.0,0.00053424,31]
[312835584,1706321465875,-500.0,0.00053424,31]
[312835585,1706321465884,-1555.2,0.00053424,31]
[312835586,1706321465894,-500.0,0.00053424,31]
[312835587,1706321465903,-902.75,0.00053424,31]
[312835588,1706321465913,-500.0,0.00053424,31]
[312835589,1706321465922,-500.0,0.00053424,31]
[312835590,1706321465932,-500.0,0.00053424,31]
[312835591,1706321465941,-500.0,0.00053424,31]
[312835592,1706321465951,-584.31,0.00053424,31]
[312835593,1706321465961,-500.0,0.00053424,31]
[312835594,1706321465971,-981.42,0.00053424,31]
[312835595,1706321465980,-617.35,0.00053424,5]
[312835596,1706321465990,-500.0,0.00053424,31]
[312835597,1706321466000,-581.95011731,0.00053424,31]
[312835598,1706321466010,-500.0,0.00053424,31]
[312835599,1706321466020,-500.0,0.00053424,31]
[312835600,1706321466030,-500.0,0.00053424,31]
[312835601,1706321466040,-568.51,0.00053424,31]
[312835602,1706321466050,-500.0,0.00053424,31]
[312835603,1706321466060,-500.0,0.00053424,31]
[312835604,1706321466070,-500.0,0.00053424,31]
[312835605,1706321466080,-500.0,0.00053424,31]
[312835606,1706321466090,-500.0,0.00053424,31]
[312835607,1706321466100,-500.0,0.00053424,31]
[312835608,1706321466110,-500.0,0.00053424,31]
[312835609,1706321466120,-500.0,0.00053424,31]
[312835610,1706321466130,-447.08532898,0.00053424,31]
[312835611,1706321466140,-500.0,0.00053424,31]
[312835612,1706321466150,-500.0,0.00053424,31]
[312835613,1706321466161,-500.0,0.00053424,31]
[312835614,1706321466177,-500.0,0.00053424,31]
[312835615,1706321466203,-550.0,0.00053424,30]
[312835616,1706321466233,-917.50520742,0.00053454,60]
[312835617,1706321466243,-10867.0,0.0005349,2]
[312835618,1706321466260,-9237.0,0.0005349,2]
[312835619,1706321466283,-157.0127,0.00053498,59]
[312835620,1706321466310,-22191.41732746,0.000535,120]
[312835621,1706321466330,-273.23976725,0.000535,120]
[312835622,1706321466347,-150.0,0.000535,40]
[312835623,1706321466362,-1000.0,0.000535,32]
[312835624,1706321466372,-1265.09364498,0.00053562,45]
[312835625,1706321466382,-1000.0,0.00053562,45]
[312835626,1706321466393,-603.45130082,0.00053562,45]
[312835627,1706321466404,-2215.61525565,0.00053562,45]
[312835628,1706321466414,-773.42658785,0.00053562,45]
[312835629,1706321466428,-1045.55708501,0.00053562,45]
[312835630,1706321466438,-689.30316273,0.00053562,45]
[312835631,1706321466449,-510.98863376,0.00053562,45]
[312835632,1706321466459,-536.24226925,0.00053562,45]
[312835633,1706321466469,-1028.95048407,0.00053562,45]
[312835634,1706321466479,-570.7483371,0.00053562,45]
[312835635,1706321466489,-906.89442873,0.00053562,45]
[312835636,1706321466498,-434.1360607,0.00053562,45]
[312835637,1706321466508,-893.54825783,0.00053562,45]
[312835638,1706321466518,-417.40105382,0.00053562,45]
[312835639,1706321466527,-41135.63866467,0.00053568,2]
[312835640,1706321466536,-201130.09877344,0.00053568,2]
[312835641,1706321466546,-201130.09877344,0.00053568,2]
[312835642,1706321466556,-201130.09877344,0.00053568,2]
[312835643,1706321466565,-201130.09877344,0.00053568,2]
[312835644,1706321466574,-97290.22733913,0.00053568,2]
[312835645,1706321466584,-97290.22733913,0.00053568,2]
[312835646,1706321466593,-97290.22733913,0.00053568,2]
[312835647,1706321466604,-97290.22733913,0.00053568,2]
[312835648,1706321466614,-418.18826973,0.00053568,2]
[312835649,1706321466623,-418.18826973,0.00053568,2]
[312835650,1706321466633,-418.18826973,0.00053568,2]
[312835651,1706321466642,-418.18826973,0.00053568,2]
[312835652,1706321466651,-10593.92389593,0.00053568,2]
[312835653,1706321466661,-10593.92389593,0.00053568,2]
[312835654,1706321466670,-10593.92389593,0.00053568,2]
[312835655,1706321466679,-10593.92389593,0.00053568,2]
[312835656,1706321466689,-5678.76463346,0.00053568,2]
[312835657,1706321466699,-5678.76463346,0.00053568,2]
[312835658,1706321466708,-5678.76463346,0.00053568,2]
[312835659,1706321466717,-5678.76463346,0.00053568,2]
[312835660,1706321466727,-214.8666718,0.00053568,2]
[312835661,1706321466737,-214.8666718,0.00053568,2]
[312835662,1706321466749,-214.8666718,0.00053568,2]
[312835663,1706321466759,-214.8666718,0.00053568,2]
[312835664,1706321466769,-1920.45186453,0.00053568,2]
[312835665,1706321466779,-1920.45186453,0.00053568,2]
[312835666,1706321466789,-1920.45186453,0.00053568,2]
[312835667,1706321466798,-1920.45186453,0.00053568,2]
[312835668,1706321466807,-968.82415952,0.00053568,2]
[312835669,1706321466817,-968.82415952,0.00053568,2]
[312835670,1706321466826,-968.82415952,0.00053568,2]
[312835671,1706321466836,-968.82415952,0.00053568,2]
[312835672,1706321466845,-252.00040204,0.00053568,2]
[312835673,1706321466855,-252.00040204,0.00053568,2]
[312835674,1706321466865,-252.00040204,0.00053568,2]
[312835675,1706321466875,-252.00040204,0.00053568,2]
[312835676,1706321466884,-156.37182955,0.00053572,60]
[312835677,1706321466893,-5598.39184115,0.000536,120]
[312835678,1706321466903,-1879.646627,0.000536,32]
[312835679,1706321466912,-289.22082177,0.00053608,60]
[312835680,1706321466924,-200.92,0.00053615,2]
[312835681,1706321466933,-157.59372888,0.00053673,60]
[312835682,1706321466942,-155.95026405,0.00053683,60]
[312835683,1706321466951,-500.0,0.00053698,31]
[312835684,1706321466961,-500.0,0.00053698,31]
[312835685,1706321466970,-500.0,0.00053698,31]
[312835686,1706321466979,-274.0022101,0.00053698,31]
[312835687,1706321466988,-500.0,0.00053698,31]
[312835688,1706321466998,-500.0,0.00053698,2]
[312835689,1706321467007,-500.0,0.00053698,31]
[312835690,1706321467016,-667.62,0.00053698,31]
[312835691,1706321467026,-1462.72,0.00053698,31]
[312835692,1706321467035,-500.0,0.00053698,31]
[312835693,1706321467045,-716.93,0.00053698,2]
[312835694,1706321467054,-500.0,0.00053698,31]
[312835695,1706321467064,-500.0,0.00053698,2]
[312835696,1706321467073,-412.32845042,0.00053698,120]
[312835697,1706321467082,-500.0,0.00053698,31]
[312835698,1706321467091,-500.0,0.00053698,31]
[312835699,1706321467101,-500.0,0.00053698,31]
[312835700,1706321467110,-665.93,0.00053698,2]
[312835701,1706321467119,-500.0,0.00053698,31]
[312835702,1706321467129,-965.88,0.00053698,7]
[312835703,1706321467138,-500.0,0.00053698,31]
[312835704,1706321467147,-853.52,0.00053698,31]
[312835705,1706321467157,-658.14,0.00053698,2]
[312835706,1706321467167,-323.73068823,0.00053698,31]
[312835707,1706321467176,-509.85,0.00053698,31]
[312835708,1706321467185,-500.0,0.00053698,31]
[312835709,1706321467195,-500.0,0.00053698,31]
[312835710,1706321467204,-278.09483043,0.00053698,31]
[312835711,1706321467213,-500.0,0.00053698,31]
[312835712,1706321467222,-915.75,0.00053698,31]
[312835713,1706321467232,-1220.47,0.00053698,2]
[312835714,1706321467241,-500.0,0.00053698,31]
[312835715,1706321467250,-500.0,0.00053698,31]
[312835716,1706321467259,-500.0,0.00053698,31]
[312835717,1706321467269,-500.0,0.00053698,31]
[312835718,1706321467278,-500.0,0.00053698,31]
[312835719,1706321467286,-500.0,0.00053698,31]
[312835720,1706321467295,-500.0,0.00053698,31]
[312835721,1706321467304,-556.6,0.00053698,2]
[312835722,1706321467313,-500.0,0.00053698,31]
[312835723,1706321467322,-936.0,0.00053698,31]
[312835724,1706321467331,-500.0,0.00053698,31]
[312835725,1706321467340,-1000.0,0.00053698,2]
[312835726,1706321467349,-500.0,0.00053698,31]
[312835727,1706321467357,-500.0,0.00053698,31]
[312835728,1706321467366,-560.89,0.00053698,31]
[312835729,1706321467375,-500.0,0.00053698,31]
[312835730,1706321467384,-500.0,0.00053698,5]
[312835731,1706321467393,-500.0,0.00053698,31]
[312835732,1706321467402,-500.0,0.00053698,31]
[312835733,1706321467411,-500.0,0.00053698,31]
[312835734,1706321467420,-514.39,0.00053698,31]
[312835735,1706321467430,-500.0,0.00053698,31]
[312835736,1706321467439,-669.78,0.00053698,31]
[312835737,1706321467449,-534.76,0.00053698,31]
[312835738,1706321467458,-10183.91,0.00053698,31]
[312835739,1706321467467,-500.0,0.00053698,31]
[312835740,1706321467477,-398.17036292,0.00053698,31]
[312835741,1706321467486,-500.0,0.00053698,31]
[312835742,1706321467495,-910.5,0.00053698,31]
[312835743,1706321467504,-500.0,0.00053698,31]
[312835744,1706321467513,-542.96,0.00053698,31]
[312835745,1706321467523,-500.0,0.00053698,31]
[312835746,1706321467534,-500.0,0.00053698,31]
[312835747,1706321467543,-500.0,0.00053698,31]
[312835748,1706321467552,-1555.2,0.00053698,31]
[312835749,1706321467561,-500.0,0.00053698,31]
[312835750,1706321467570,-902.75,0.00053698,31]
[312835751,1706321467579,-500.0,0.00053698,31]
[312835752,1706321467589,-500.0,0.00053698,31]
[312835753,1706321467680,-500.0,0.00053698,31]
[312835754,1706321467689,-500.0,0.00053698,31]
[312835755,1706321467699,-584.31,0.00053698,31]
[312835756,1706321467707,-500.0,0.00053698,31]
[312835757,1706321467718,-981.42,0.00053698,31]
[312835758,1706321467728,-617.35,0.00053698,5]
[312835759,1706321467737,-500.0,0.00053698,31]
[312835760,1706321467750,-500.0,0.00053698,31]
[312835761,1706321467759,-500.0,0.00053698,31]
[312835762,1706321467768,-500.0,0.00053698,31]
[312835763,1706321467778,-568.51,0.00053698,31]
[312835764,1706321467788,-500.0,0.00053698,31]
[312835765,1706321467797,-500.0,0.00053698,31]
[312835766,1706321467806,-500.0,0.00053698,31]
[312835767,1706321467815,-500.0,0.00053698,31]
[312835768,1706321467826,-500.0,0.00053698,31]
[312835769,1706321467836,-500.0,0.00053698,31]
[312835770,1706321467845,-276.20094225,0.00053698,31]
[312835771,1706321467854,-500.0,0.00053698,31]
[312835772,1706321467864,-500.0,0.00053698,31]
[312835773,1706321467873,-500.0,0.00053698,31]
[312835774,1706321467883,-500.0,0.00053698,31]
[312835775,1706321467892,-328.03150401,0.00053698,31]
[312835776,1706321467901,-550.0,0.00053698,30]
[312835777,1706321467911,-300.0,0.000537,32]
[312835778,1706321467920,-150.0,0.000537,32]
[312835779,1706321467929,-3000.0,0.000537,69]
[312835780,1706321467939,-1769.876112,0.000537,30]
[312835781,1706321467948,-151.14505903,0.00053703,60]
[312835782,1706321467958,-3000.0,0.0005371,69]
[312835783,1706321467968,-8431.50787048,0.00053718,14]
[312835784,1706321467977,-692.06285158,0.00053719,10]
[312835785,1706321467987,-351.94775369,0.00053719,4]
[312835786,1706321467996,-1903.14431336,0.00053719,4]
[312835787,1706321468006,-196.67150404,0.00053719,4]
[312835788,1706321468016,-155.0,0.00053719,4]
[312835789,1706321468026,-303.55478187,0.0005372,4]
[312835790,1706321468036,-252.37950753,0.0005372,4]
[312835791,1706321468045,-5161.519182,0.0005372,69]
[312835792,1706321468055,-289.22082177,0.00053723,60]
[312835793,1706321468065,-2000.0,0.0005373,3]
[312835794,1706321468075,-2000.0,0.0005373,3]
[312835795,1706321468084,-2000.0,0.0005373,3]
[312835796,1706321468094,-289.22082177,0.00053741,60]
[312835797,1706321468103,-157.58427946,0.0005377,60]
[312835798,1706321468113,-6664.65,0.0005377,30]
[312835799,1706321468123,-6664.65,0.0005377,30]
[312835800,1706321468132,-6664.65,0.0005377,30]
[312835801,1706321468142,-6664.65,0.0005377,30]
[312835802,1706321468152,-2140.48415906,0.00053786,20]
[312835803,1706321468161,-32479.0,0.00053787,30]
[312835804,1706321468170,-33833.8327028,0.000538,4]
[312835805,1706321468180,-155.0,0.000538,2]
[312835806,1706321468189,-2373.57297439,0.000538,15]
[312835807,1706321468198,-155.0,0.000538,4]
[312835808,1706321468208,-1206.2073378,0.000538,4]
[312835809,1706321468218,-1001.61759693,0.000538,5]
[312835810,1706321468227,-1083.8,0.000538,15]
[312835811,1706321468236,-283.02529346,0.00053862,4]
[312835812,1706321468246,-5200.0,0.0005388,30]
[312835813,1706321468255,-5200.0,0.0005388,31]
[312835814,1706321468265,-8235.35410342,0.00053887,120]
[312835815,1706321468274,-5274.23428759,0.00053887,120]
[312835816,1706321468283,-8606.47268146,0.00053899,30]
[312835817,1706321468293,-42763.63105173,0.000539,30]
[312835818,1706321468302,-99999.00000001,0.000539,30]
[312835819,1706321468311,-101092.16759673,0.000539,30]
[312835820,1706321468319,-165.4,0.000539,30]
[312835821,1706321468329,-100283.10409526,0.000539,40]
[312835822,1706321468338,-533.97088869,0.000539,120]
[312835823,1706321468347,-150.101,0.000539,30]
[312835824,1706321468356,-159.40480666,0.000539,30]
[312835825,1706321468365,-289.22082177,0.00053953,60]
[312835826,1706321468374,-500.0,0.00053972,31]
[312835827,1706321468384,-500.0,0.00053972,31]
[312835828,1706321468393,-500.0,0.00053972,31]
[312835829,1706321468402,-500.0,0.00053972,31]